bitfinex-derivatives/quotes_BTCF0:USTF0_20250510
["timestamp","ask_amount","ask_price","bid_price","bid_amount"]
[1746866428022,2.19821618,104000.0,103990.0,0.0689]
[1746866429514,2.20542618,104000.0,103990.0,0.0689]
[1746866429921,2.20542618,104000.0,103980.0,0.03644288]
[1746866429922,2.01312818,104000.0,103980.0,0.03644288]
[1746866430219,0.72343388,103990.0,103980.0,0.03644288]
[1746866430428,0.72343388,103990.0,103980.0,0.26057788]
[1746866431819,0.72343388,103990.0,103980.0,0.06824288]
[1746866432018,0.72343388,103990.0,103980.0,0.03574288]
[1746866432825,0.72343388,103990.0,103980.0,0.22807788]
[1746866433213,0.72343388,103990.0,103980.0,0.26077788]
[1746866433419,0.73443388,103990.0,103980.0,0.06944288]
[1746866433617,0.73443388,103990.0,103980.0,0.26177788]
[1746866434426,0.73243388,103990.0,103980.0,0.06844288]
[1746866436018,0.83905126,103990.0,103980.0,0.00394288]
[1746866436220,0.89843388,103990.0,103980.0,0.00394288]
[1746866436726,0.89843388,103990.0,103980.0,0.06494288]
[1746866437317,0.73243388,103990.0,103980.0,0.06494288]
[1746866437728,0.403,103990.0,103980.0,0.25727788]
[1746866437915,0.54224,103990.0,103980.0,0.29027788]
[1746866438121,0.50904,103990.0,103980.0,0.45627788]
[1746866438326,0.64948,103990.0,103980.0,0.47131538]
[1746866438917,0.50904,103990.0,103980.0,0.47131538]
[1746866439122,0.50904,103990.0,103980.0,0.68409893]
[1746866439523,0.64988,103990.0,103980.0,0.48131355]
[1746866440318,0.64488,103990.0,103980.0,0.48131355]
[1746866440523,0.64088,103990.0,103980.0,0.48131355]
[1746866442624,0.64088,103990.0,103980.0,0.48131332]
[1746866445233,0.64088,103990.0,103980.0,0.5879307]
[1746866446027,0.64088,103990.0,103980.0,0.48131332]
[1746866447432,0.64088,103990.0,103980.0,0.46627788]
[1746866448132,0.64088,103990.0,103980.0,1.96627788]
[1746866450133,0.67388,103990.0,103980.0,1.96627788]
[1746866450525,0.67388,103990.0,103980.0,0.46627788]
[1746866451525,0.67388,103990.0,103980.0,0.48131357]
[1746866451727,0.97281388,103990.0,103980.0,0.48131357]
[1746866451925,0.97281388,103990.0,103980.0,0.46627788]
[1746866452127,0.97281388,103990.0,103980.0,0.06494288]
[1746866452128,1.03571388,103990.0,103980.0,0.06494288]
[1746866452435,1.03571388,103990.0,103980.0,0.22697788]
[1746866453732,1.03871388,103990.0,103980.0,0.25727788]
[1746866453922,0.56631738,103990.0,103980.0,0.25727788]
[1746866454122,0.84507738,103990.0,103980.0,0.28807788]
[1746866454332,1.03739388,103990.0,103980.0,0.28807788]
[1746866454633,0.84507738,103990.0,103980.0,0.28807788]
[1746866454834,0.56631738,103990.0,103980.0,0.28807788]
[1746866455132,0.84503738,103990.0,103980.0,0.28807788]
[1746866455527,0.4597,103990.0,103980.0,0.28807788]
[1746866455728,0.59942,103990.0,103980.0,0.28807788]
[1746866455928,0.67556,103990.0,103980.0,0.28807788]
[1746866456129,0.67556,103990.0,103980.0,0.45407788]
[1746866456930,0.3968,103990.0,103980.0,0.45407788]
[1746866457124,0.67364,103990.0,103980.0,0.45507788]
[1746866457330,0.67264,103990.0,103980.0,0.45707788]
[1746866457729,0.3938,103990.0,103980.0,0.45707788]
[1746866457932,0.67256,103990.0,103980.0,0.45507788]
[1746866458834,0.77913738,103990.0,103980.0,0.45407788]
[1746866459040,1.00195388,103990.0,103980.0,0.45407788]
[1746866459337,1.00195388,103990.0,103980.0,0.28807788]
[1746866459529,0.86295388,103990.0,103980.0,0.25727788]
[1746866459733,0.80963738,103990.0,103980.0,0.25727788]
[1746866460333,0.53091738,103990.0,103980.0,0.25727788]
[1746866460838,1.00195388,103990.0,103980.0,0.25727788]
[1746866461335,1.00195388,103990.0,103980.0,0.22697788]
[1746866462337,0.8953365,103990.0,103980.0,0.22697788]
[1746866462532,1.00195388,103990.0,103980.0,0.22697788]
[1746866464241,1.00195388,103990.0,103980.0,0.19627788]
[1746866464831,1.00195388,103990.0,103980.0,0.00394288]
[1746866465031,1.00195388,103990.0,103980.0,0.19627788]
[1746866465235,1.16795388,103990.0,103980.0,0.19627788]
[1746866469148,1.00195388,103990.0,103980.0,0.19627788]
[1746866472352,1.03345388,103990.0,103980.0,0.22647788]
[1746866473741,1.03345388,103990.0,103980.0,0.00394288]
[1746866474151,1.03345388,103990.0,103980.0,0.19627788]
[1746866475657,1.03345388,103990.0,103980.0,0.00394288]
[1746866475854,1.03345388,103990.0,103980.0,0.19627788]
[1746866476453,1.39425388,103990.0,103980.0,0.19627788]
[1746866477058,1.39425388,103990.0,103980.0,0.00394288]
[1746866477452,1.39425388,103990.0,103980.0,0.19627788]
[1746866477657,1.39425388,103990.0,103980.0,0.22817788]
[1746866479664,1.25525388,103990.0,103980.0,0.22817788]
[1746866479864,1.39425388,103990.0,103980.0,0.29067788]
[1746866481056,1.40146388,103990.0,103980.0,0.29067788]
[1746866483567,1.20914738,103990.0,103980.0,0.29067788]
[1746866483760,0.86781,103990.0,103980.0,0.29067788]
[1746866484064,1.00681,103990.0,103980.0,0.29067788]
[1746866484268,1.00681,103990.0,103980.0,0.45667788]
[1746866485170,1.11342738,103990.0,103980.0,0.45667788]
[1746866485561,1.00681,103990.0,103980.0,0.45667788]
[1746866485964,1.00681,103990.0,103980.0,0.47171416]
[1746866486458,1.00681,103990.0,103980.0,0.47171418]
[1746866488567,1.00681,103990.0,103980.0,0.45667788]
[1746866490962,0.86781,103990.0,103980.0,0.45667788]
[1746866491368,1.00677,103990.0,103980.0,0.45667788]
[1746866491669,1.30570388,103990.0,103980.0,0.45667788]
[1746866491873,1.14498738,103990.0,103980.0,0.45667788]
[1746866493373,1.17758738,103990.0,103980.0,0.45667788]
[1746866494168,1.17754738,103990.0,103980.0,0.45667788]
[1746866494364,1.36986388,103990.0,103980.0,0.45667788]
[1746866494568,1.40166388,103990.0,103980.0,0.42487788]
[1746866495168,1.40166388,103990.0,103980.0,0.25887788]
[1746866497671,1.20934738,103990.0,103980.0,0.29157788]
[1746866498673,1.40166388,103990.0,103980.0,0.29157788]
[1746866499180,1.20934738,103990.0,103980.0,0.29157788]
[1746866499377,1.14494738,103990.0,103980.0,0.29157788]
[1746866500070,1.20574738,103990.0,103980.0,0.29157788]
[1746866500780,1.39806388,103990.0,103980.0,0.29157788]
[1746866501780,1.14494738,103990.0,103980.0,0.29157788]
[1746866501971,1.03829,103990.0,103980.0,0.29157788]
[1746866502172,1.14490738,103990.0,103980.0,0.45757788]
[1746866502783,1.03829,103990.0,103980.0,0.45757788]
[1746866504979,1.14490738,103990.0,103980.0,0.45757788]
[1746866507178,1.33722388,103990.0,103980.0,0.45757788]
[1746866507676,1.36962388,103990.0,103980.0,0.45757788]
[1746866507876,1.20810738,103990.0,103980.0,0.45757788]
[1746866511476,1.10149,103990.0,103980.0,0.45757788]
[1746866511782,1.20810738,103990.0,103980.0,0.45757788]
[1746866512882,1.10149,103990.0,103980.0,0.45757788]
[1746866515381,1.10149,103990.0,103980.0,0.29157788]
[1746866516276,1.10149,103990.0,103980.0,0.45757788]
[1746866517075,0.82361,103990.0,103980.0,0.45757788]
[1746866517282,1.10133,103990.0,103980.0,0.45757788]
[1746866517484,0.86769,103990.0,103980.0,0.56419526]
[1746866517683,1.00653,103990.0,103980.0,0.57419526]
[1746866517885,1.00653,103990.0,103980.0,0.46757788]
[1746866518386,1.03823,103990.0,103980.0,0.46757788]
[1746866518984,1.03823,103990.0,103980.0,0.47057788]
[1746866520585,1.03823,103990.0,103980.0,0.47357788]
[1746866521691,1.03823,103990.0,103980.0,0.48861357]
[1746866523484,1.00653,103990.0,103980.0,0.59523095]
[1746866524091,1.00653,103990.0,103980.0,0.48861357]
[1746866524287,1.00653,103990.0,103980.0,1.98861357]
[1746866524786,1.00653,103990.0,103980.0,1.9886134]
[1746866525190,1.03783,103990.0,103980.0,1.9886134]
[1746866525790,1.03783,103990.0,103980.0,0.4886134]
[1746866526287,1.03783,103990.0,103980.0,1.9886134]
[1746866526696,1.03783,103990.0,103980.0,0.48861344]
[1746866527186,1.2944465,103990.0,103980.0,0.48861344]
[1746866527389,1.40106388,103990.0,103980.0,0.44087788]
[1746866527591,1.40106388,103990.0,103980.0,0.40017788]
[1746866527790,1.36443182,103990.0,103980.0,0.40017788]
[1746866528192,1.36443182,103990.0,103980.0,0.23417788]
[1746866531184,1.36443182,103990.0,103980.0,0.23117788]
[1746866531585,1.36443182,103990.0,103980.0,0.22817788]
[1746866531785,1.40109249,103990.0,103980.0,0.22817788]
[1746866532390,1.40109249,103990.0,103980.0,0.19627788]
[1746866533191,1.40109249,103990.0,103980.0,0.22747788]
[1746866535886,0.93105599,103990.0,103980.0,0.22747788]
[1746866536087,1.20861599,103990.0,103980.0,0.22747788]
[1746866536286,1.40093249,103990.0,103980.0,0.25887788]
[1746866536492,1.40293249,103990.0,103980.0,0.25887788]
[1746866537099,1.40393249,103990.0,103980.0,0.25887788]
[1746866537297,1.40193249,103990.0,103980.0,0.25887788]
[1746866537892,1.40093249,103990.0,103980.0,0.25887788]
[1746866541591,1.40093249,103990.0,103980.0,0.22747788]
[1746866542996,1.40093249,103990.0,103980.0,0.19627788]
[1746866543198,1.40093249,103990.0,103980.0,0.22927788]
[1746866546401,1.40093249,103990.0,103980.0,0.26007788]
[1746866550504,1.31526198,103990.0,103960.0,0.0480897]
[1746866550704,0.82824599,103970.0,103960.0,0.36728702]
[1746866551004,0.2772,103970.0,103960.0,0.47403422]
[1746866551204,0.3608,103980.0,103970.0,0.1923535]
[1746866551405,0.638,103980.0,103970.0,0.38179949]
[1746866551703,0.638,103980.0,103970.0,0.2751535]
[1746866552307,0.63796,103980.0,103970.0,0.4411535]
[1746866552702,0.63796,103980.0,103970.0,0.4421535]
[1746866553907,0.63796,103980.0,103970.0,0.51212421]
[1746866554301,0.63796,103980.0,103970.0,0.51412421]
[1746866555307,0.64517,103980.0,103970.0,0.51412421]
[1746866556902,0.14585,103980.0,103970.0,0.51412421]
[1746866557204,0.00721,103980.0,103970.0,0.52916069]
[1746866557410,0.00721,103980.0,103970.0,0.62533765]
[1746866557605,0.28433,103980.0,103970.0,0.62533765]
[1746866558601,0.28433,103980.0,103970.0,0.62533681]
[1746866560805,0.14585,103980.0,103970.0,0.72151281]
[1746866563718,0.14585,103980.0,103970.0,0.62533681]
[1746866563923,0.14585,103980.0,103970.0,0.72151282]
[1746866565619,0.14585,103980.0,103970.0,0.55536611]
[1746866565820,0.14585,103980.0,103970.0,0.62533682]
[1746866567421,0.14585,103980.0,103970.0,0.62533691]
[1746866568327,0.14585,103980.0,103970.0,0.65553691]
[1746866571423,0.17755,103980.0,103970.0,0.65553691]
[1746866571722,0.53835,103980.0,103970.0,0.65553691]
[1746866572413,0.53835,103980.0,103970.0,0.55935995]
[1746866572916,0.60255,103980.0,103970.0,0.55935995]
[1746866573116,0.60255,103980.0,103970.0,0.39335995]
[1746866573818,0.60255,103980.0,103970.0,0.32338924]
[1746866574023,0.86485571,103980.0,103970.0,0.29108924]
[1746866574322,0.794885,103980.0,103970.0,0.29108924]
[1746866575422,0.86485571,103980.0,103970.0,0.29108924]
[1746866575618,0.86485571,103980.0,103970.0,0.2455535]
[1746866575836,0.86485571,103980.0,103970.0,0.26059092]
[1746866576023,0.86485571,103980.0,103970.0,0.2455535]
[1746866576212,0.86485571,103980.0,103970.0,0.26059132]
[1746866577021,0.86485571,103980.0,103970.0,0.2455535]
[1746866577421,0.86485571,103980.0,103970.0,0.26059131]
[1746866577819,0.86485571,103980.0,103970.0,0.2455535]
[1746866578018,0.67252071,103980.0,103970.0,0.2455535]
[1746866578914,1.22565571,103980.0,103970.0,0.2455535]
[1746866579123,1.03332071,103980.0,103970.0,0.2455535]
[1746866579813,1.22565571,103980.0,103970.0,0.2153535]
[1746866580125,1.03332071,103980.0,103970.0,0.2153535]
[1746866580329,1.22565571,103980.0,103970.0,0.2153535]
[1746866580514,1.03332071,103980.0,103970.0,0.2153535]
[1746866581724,0.96335,103980.0,103970.0,0.2153535]
[1746866581925,0.96335,103980.0,103970.0,0.2780535]
[1746866583124,0.96335,103980.0,103970.0,0.2580535]
[1746866596734,1.03332071,103980.0,103970.0,0.2580535]
[1746866602432,1.22565571,103980.0,103970.0,0.2580535]
[1746866605236,1.03332071,103980.0,103970.0,0.2580535]
[1746866605629,1.03332071,103980.0,103970.0,0.2909535]
[1746866606029,1.29562642,103980.0,103970.0,0.2262535]
[1746866606239,1.46162642,103980.0,103970.0,0.2262535]
[1746866606829,1.39165571,103980.0,103970.0,0.2262535]
[1746866607035,1.46162642,103980.0,103970.0,0.2262535]
[1746866607430,1.39165571,103980.0,103970.0,0.2262535]
[1746866607630,1.39165571,103980.0,103970.0,0.2577535]
[1746866607836,1.40597065,103980.0,103970.0,0.2577535]
[1746866610138,1.23997065,103980.0,103970.0,0.2577535]
[1746866610339,0.97766494,103980.0,103970.0,0.2577535]
[1746866610638,1.23997065,103980.0,103970.0,0.2577535]
[1746866611331,1.23997065,103980.0,103970.0,0.2567535]
[1746866611531,1.24097065,103980.0,103970.0,0.2567535]
[1746866612937,1.24097065,103980.0,103970.0,0.2547535]
[1746866614140,1.04863565,103980.0,103970.0,0.2547535]
[1746866615733,1.24097065,103980.0,103970.0,0.2547535]
[1746866616133,1.04863565,103980.0,103970.0,0.2547535]
[1746866618646,0.97866494,103980.0,103970.0,0.0547535]
[1746866618840,0.96435,103980.0,103970.0,0.247107]
[1746866619040,0.96435,103980.0,103970.0,0.279107]
[1746866619041,1.10187,103980.0,103970.0,0.279107]
[1746866619941,1.17184071,103980.0,103970.0,0.279107]
[1746866630950,1.10187,103980.0,103970.0,0.279107]
[1746866631154,1.03743,103980.0,103970.0,0.279107]
[1746866632255,1.03743,103980.0,103970.0,0.445107]
[1746866633653,1.06893,103980.0,103970.0,0.445107]
[1746866634243,1.06893,103980.0,103970.0,0.279107]
[1746866634450,0.90015,103980.0,103970.0,0.279107]
[1746866634641,1.03739,103980.0,103970.0,0.279107]
[1746866635850,1.06889,103980.0,103970.0,0.279107]
[1746866636044,1.10189,103980.0,103970.0,0.279107]
[1746866636248,1.17186071,103980.0,103970.0,0.279107]
[1746866636945,1.10189,103980.0,103970.0,0.279107]
[1746866640257,1.10189,103980.0,103970.0,0.445107]
[1746866640447,1.17186071,103980.0,103970.0,0.445107]
[1746866641248,1.17186071,103980.0,103970.0,0.279107]
[1746866644451,0.45026071,103980.0,103970.0,0.279107]
[1746866644749,1.17186071,103980.0,103970.0,0.279107]
[1746866650867,1.36419571,103980.0,103970.0,0.247107]
[1746866651161,1.17186071,103980.0,103970.0,0.247107]
[1746866652154,1.17186071,103980.0,103970.0,0.413107]
[1746866652756,1.36419571,103980.0,103970.0,0.413107]
[1746866653154,1.36419571,103980.0,103970.0,0.247107]
[1746866655262,1.43416642,103980.0,103970.0,0.247107]
[1746866655451,1.43416642,103980.0,103970.0,0.215607]
[1746866656459,1.36419571,103980.0,103970.0,0.215607]
[1746866656855,1.37860077,103980.0,103970.0,0.215607]
[1746866658356,1.44857148,103980.0,103970.0,0.215607]
[1746866659257,1.37860077,103980.0,103970.0,0.215607]
[1746866659453,1.30863006,103980.0,103970.0,0.215607]
[1746866659752,1.37860077,103980.0,103970.0,0.215607]
[1746866663462,1.18626577,103980.0,103970.0,0.215607]
[1746866664253,1.44857148,103980.0,103970.0,0.215607]
[1746866665162,1.37860077,103980.0,103970.0,0.215607]
[1746866665865,1.18626577,103980.0,103970.0,0.215607]
[1746866666170,1.37860077,103980.0,103970.0,0.215607]
[1746866667466,1.44857148,103980.0,103970.0,0.215607]
[1746866669063,1.37860077,103980.0,103970.0,0.215607]
[1746866669567,1.37860077,103980.0,103970.0,0.248507]
[1746866670272,1.37860077,103980.0,103970.0,0.215607]
[1746866670567,1.44857148,103980.0,103970.0,0.215607]
[1746866670765,1.11629506,103980.0,103970.0,0.215607]
[1746866670961,1.18626577,103980.0,103970.0,0.246507]
[1746866675664,1.18626577,103980.0,103970.0,0.277707]
[1746866677375,1.03651,103980.0,103970.0,0.277707]
[1746866678173,1.03651,103980.0,103970.0,0.443707]
[1746866678870,1.10648071,103980.0,103970.0,0.443707]
[1746866679376,1.16868071,103980.0,103970.0,0.443707]
[1746866680173,1.16868071,103980.0,103970.0,0.277707]
[1746866683673,1.09871,103980.0,103970.0,0.277707]
[1746866683975,1.16868071,103980.0,103970.0,0.277707]
[1746866690376,1.09871,103980.0,103970.0,0.277707]
[1746866690580,1.16868071,103980.0,103970.0,0.277707]
[1746866693168,1.09871,103980.0,103970.0,0.277707]
[1746866693368,1.16868071,103980.0,103970.0,0.277707]
[1746866697473,0.44708071,103980.0,103970.0,0.277707]
[1746866697673,1.16868071,103980.0,103970.0,0.277707]
[1746866702880,1.36101571,103980.0,103970.0,0.277707]
[1746866703079,1.16868071,103980.0,103970.0,0.277707]
[1746866705080,1.16868071,103980.0,103970.0,0.443707]
[1746866705884,1.09871,103980.0,103970.0,0.443707]
[1746866706073,1.16868071,103980.0,103970.0,0.443707]
[1746866706280,0.14421,103980.0,103970.0,0.54871579]
[1746866706677,0.27993,103980.0,103970.0,0.54871579]
[1746866706875,0.27993,103980.0,103970.0,2.04871374]
[1746866707474,0.27893,103980.0,103970.0,2.05171374]
[1746866707783,0.90203571,103980.0,103970.0,1.98174303]
[1746866707979,0.93343571,103980.0,103970.0,1.98174303]
[1746866708173,0.99603571,103980.0,103970.0,1.81574303]
[1746866708387,0.99603571,103980.0,103970.0,0.31574303]
[1746866708587,0.80370071,103980.0,103970.0,0.31874303]
[1746866710282,0.80370071,103980.0,103970.0,0.31874473]
[1746866711688,0.99603571,103980.0,103970.0,0.31874473]
[1746866712082,0.80370071,103980.0,103970.0,0.31874473]
[1746866713889,0.80370071,103980.0,103970.0,0.31874474]
[1746866716080,0.80370071,103980.0,103970.0,0.303707]
[1746866716476,0.73373,103980.0,103970.0,0.31874475]
[1746866719081,0.50401,103980.0,103970.0,0.38871546]
[1746866719286,0.63945,103980.0,103970.0,0.38871546]
[1746866719486,0.14321,103980.0,103970.0,0.38871546]
[1746866719686,0.27865,103980.0,103970.0,0.38871546]
[1746866720186,0.27865,103980.0,103970.0,0.55471546]
[1746866720391,1e-07,103980.0,103970.0,0.55471546]
[1746866720581,1e-07,103980.0,103970.0,0.92089242]
[1746866720782,1.51284,103990.0,103980.0,0.192335]
[1746866720992,1.78424,103990.0,103980.0,0.45131417]
[1746866721184,1.78424,103990.0,103980.0,0.61731417]
[1746866721584,1.78424,103990.0,103980.0,0.54734346]
[1746866721986,1.78424,103990.0,103980.0,2.04734346]
[1746866722185,0.6322,103990.0,103980.0,2.04734346]
[1746866722488,0.6322,103990.0,103980.0,2.05134346]
[1746866722785,0.6322,103990.0,103980.0,2.05134138]
[1746866724489,0.6322,103990.0,103980.0,2.05134135]
[1746866726283,0.6322,103990.0,103980.0,2.05134131]
[1746866727290,0.6322,103990.0,103980.0,2.03630571]
[1746866727497,0.6322,103990.0,103980.0,2.06930571]
[1746866727683,0.6322,103990.0,103980.0,2.03760571]
[1746866727889,0.6322,103990.0,103980.0,2.05264129]
[1746866728088,0.4968,103990.0,103980.0,2.05264129]
[1746866731205,0.4968,103990.0,103980.0,2.03760571]
[1746866732004,0.5284,103990.0,103980.0,2.03760571]
[1746866738301,0.5284,103990.0,103980.0,2.07010571]
[1746866739403,0.5284,103990.0,103980.0,2.000135]
[1746866739603,0.5908,103990.0,103980.0,2.000135]
[1746866746407,0.5908,103990.0,103980.0,1.967135]
[1746866747211,0.5908,103990.0,103980.0,1.801135]
[1746866747821,0.5908,103990.0,103980.0,1.90300571]
[1746866748020,0.5908,103990.0,103980.0,1.833035]
[1746866750229,0.5908,103990.0,103980.0,1.90300571]
[1746866751126,0.5908,103990.0,103980.0,2.06900571]
[1746866751327,0.5908,103990.0,103980.0,2.0840409]
[1746866751927,0.5908,103990.0,103980.0,2.01407019]
[1746866752227,0.5908,103990.0,103980.0,1.84807019]
[1746866753930,0.59801,103990.0,103980.0,1.84807019]
[1746866756723,0.59801,103990.0,103980.0,1.84807033]
[1746866758531,0.59801,103990.0,103980.0,1.84807049]
[1746866763432,0.59801,103990.0,103980.0,1.84807056]
[1746866764137,0.86029721,103990.0,103980.0,0.28387056]
[1746866764433,0.86029721,103990.0,103980.0,0.268835]
[1746866764738,0.86029721,103990.0,103980.0,0.196335]
[1746866765933,0.86029721,103990.0,103980.0,0.229535]
[1746866771334,0.7903265,103990.0,103980.0,0.229535]
[1746866771537,0.86029721,103990.0,103980.0,0.229535]
[1746866771732,0.86029721,103990.0,103980.0,0.259635]
[1746866772143,0.59801,103990.0,103980.0,0.259635]
[1746866772444,0.66798071,103990.0,103980.0,0.259635]
[1746866772845,0.66798071,103990.0,103980.0,0.291035]
[1746866773234,0.83398071,103990.0,103980.0,0.291035]
[1746866775148,0.83581,103990.0,103980.0,0.36100571]
[1746866775343,0.70161,103990.0,103980.0,0.36100571]
[1746866775642,0.83581,103990.0,103980.0,0.36100571]
[1746866776453,0.70161,103990.0,103980.0,0.36100571]
[1746866776753,0.83577,103990.0,103980.0,0.36100571]
[1746866776956,0.80417,103990.0,103980.0,0.36100571]
[1746866777254,0.63817,103990.0,103980.0,0.36100571]
[1746866777947,0.63817,103990.0,103980.0,0.37100571]
[1746866778145,0.63813,103990.0,103980.0,0.38604166]
[1746866778346,0.63813,103990.0,103980.0,0.37100571]
[1746866778651,0.63813,103990.0,103980.0,0.38604158]
[1746866778956,0.63813,103990.0,103980.0,1.88604158]
[1746866779150,0.70810071,103990.0,103980.0,1.801035]
[1746866779354,0.74050071,103990.0,103980.0,1.801035]
[1746866780154,0.90650071,103990.0,103980.0,1.801035]
[1746866780454,0.96980071,103990.0,103980.0,1.801035]
[1746866780647,0.89983,103990.0,103980.0,1.801035]
[1746866780847,0.89983,103990.0,103980.0,1.81607089]
[1746866781349,0.89983,103990.0,103980.0,1.801035]
[1746866783145,0.73383,103990.0,103980.0,1.801035]
[1746866784249,0.89983,103990.0,103980.0,1.801035]
[1746866787047,0.89983,103990.0,103980.0,0.301035]
[1746866788457,0.89983,103990.0,103980.0,0.269635]
[1746866788756,1.0921465,103990.0,103980.0,0.269635]
[1746866791257,1.0921465,103990.0,103980.0,0.259635]
[1746866791454,1.16211721,103990.0,103980.0,0.259635]
[1746866791850,1.16211721,103990.0,103980.0,0.229535]
[1746866792053,0.96980071,103990.0,103980.0,0.229535]
[1746866792256,0.89983,103990.0,103980.0,0.293135]
[1746866793448,1.16211721,103990.0,103980.0,0.293135]
[1746866794650,1.16211721,103990.0,103980.0,0.260235]
[1746866798050,1.0921465,103990.0,103980.0,0.260235]
[1746866798255,1.16211721,103990.0,103980.0,0.260235]
[1746866798652,0.66797,103990.0,103980.0,0.33020571]
[1746866798856,0.80169,103990.0,103980.0,0.303235]
[1746866799049,0.80169,103990.0,103980.0,0.37320571]
[1746866800155,0.79448,103990.0,103980.0,0.37320571]
[1746866800553,0.79448,103990.0,103980.0,0.388242]
[1746866801164,0.62848,103990.0,103980.0,0.388242]
[1746866801459,0.65988,103990.0,103980.0,0.37320571]
[1746866801657,0.65988,103990.0,103980.0,0.388242]
[1746866802058,0.65988,103990.0,103980.0,0.31827129]
[1746866802266,0.65988,103990.0,103980.0,0.388242]
[1746866803465,0.62848,103990.0,103980.0,0.388242]
[1746866803669,0.62848,103990.0,103980.0,0.38824147]
[1746866804561,0.63569,103990.0,103980.0,0.38824147]
[1746866804962,0.66689,103990.0,103980.0,0.38824147]
[1746866805863,0.66689,103990.0,103980.0,0.38624147]
[1746866806064,0.66689,103990.0,103980.0,0.38924147]
[1746866807059,0.83289,103990.0,103980.0,0.38724147]
[1746866807259,0.83289,103990.0,103980.0,0.39024147]
[1746866809062,0.83289,103990.0,103980.0,0.39024146]
[1746866809362,0.80169,103990.0,103980.0,0.39024146]
[1746866809561,0.80149,103990.0,103980.0,0.46021217]
[1746866809764,0.80149,103990.0,103980.0,0.39024146]
[1746866810164,0.63549,103990.0,103980.0,0.39024146]
[1746866810663,0.63549,103990.0,103980.0,0.39024091]
[1746866810864,0.66879,103990.0,103980.0,0.39024091]
[1746866812868,0.70039,103990.0,103980.0,0.39024091]
[1746866813970,0.9242065,103990.0,103980.0,0.3202702]
[1746866814161,1.16017721,103990.0,103980.0,0.3202702]
[1746866814366,1.16017721,103990.0,103980.0,0.2872702]
[1746866816059,1.16017721,103990.0,103980.0,0.28727126]
[1746866817664,0.96786071,103990.0,103980.0,0.27727126]
[1746866818064,1.16017721,103990.0,103980.0,0.27727126]
[1746866818860,0.96786071,103990.0,103980.0,0.27727126]
[1746866819571,1.16017721,103990.0,103980.0,0.27727126]
[1746866820169,1.16017721,103990.0,103980.0,0.24657126]
[1746866820474,1.16017721,103990.0,103980.0,0.21337126]
[1746866820673,1.16017721,103990.0,103980.0,0.198335]
[1746866824580,1.0902065,103990.0,103980.0,0.198335]
[1746866824772,1.16017721,103990.0,103980.0,0.230435]
[1746866825474,1.16117721,103990.0,103980.0,0.227435]
[1746866826172,1.16117721,103990.0,103980.0,0.195335]
[1746866827767,1.16217721,103990.0,103980.0,0.192335]
[1746866827971,1.52297721,103990.0,103980.0,0.192335]
[1746866829174,1.52297721,103990.0,103980.0,0.224035]
[1746866832782,1.33066071,103990.0,103980.0,0.224035]
[1746866833981,1.52297721,103990.0,103980.0,0.224035]
[1746866834184,1.42297721,103990.0,103980.0,0.224035]
[1746866834373,1.23066071,103990.0,103980.0,0.224035]
[1746866834884,1.42297721,103990.0,103980.0,0.224035]
[1746866840174,1.42297721,103990.0,103980.0,0.255735]
[1746866846183,1.23066071,103990.0,103980.0,0.255735]
[1746866847983,1.42297721,103990.0,103980.0,0.255735]
[1746866848983,1.16069,103990.0,103980.0,0.255735]
[1746866849186,1.23066071,103990.0,103980.0,0.255735]
[1746866849582,1.23066071,103990.0,103980.0,0.287235]
[1746866849980,1.42297721,103990.0,103980.0,0.287235]
[1746866851885,1.3530065,103990.0,103980.0,0.287235]
[1746866852091,1.42297721,103990.0,103980.0,0.287235]
[1746866855085,1.23066071,103990.0,103980.0,0.287235]
[1746866855979,1.42297721,103990.0,103980.0,0.287235]
[1746866860196,1.42297721,103990.0,103980.0,0.255735]
[1746866861395,1.3530065,103990.0,103980.0,0.255735]
[1746866861702,1.42297721,103990.0,103980.0,0.255735]
[1746866863090,1.23066071,103990.0,103980.0,0.255735]
[1746866863599,1.42297721,103990.0,103980.0,0.255735]
[1746866865998,1.23066071,103990.0,103980.0,0.286135]
[1746866868798,1.42297721,103990.0,103980.0,0.286135]
[1746866868993,1.23066071,103990.0,103980.0,0.286135]
[1746866869599,1.42297721,103990.0,103980.0,0.286135]
[1746866870599,1.23066071,103990.0,103980.0,0.286135]
[1746866874298,1.42297721,103990.0,103980.0,0.286135]
[1746866874504,1.42297721,103990.0,103980.0,0.255735]
[1746866875002,1.23066071,103990.0,103980.0,0.255735]
[1746866877303,1.23066071,103990.0,103980.0,0.286335]
[1746866889309,1.16069,103990.0,103980.0,0.286335]
[1746866889703,1.23066071,103990.0,103980.0,0.286335]
[1746866891315,1.16069,103990.0,103980.0,0.286335]
[1746866891520,1.23066071,103990.0,103980.0,0.286335]
[1746866893722,1.16069,103990.0,103980.0,0.286335]
[1746866894123,1.23066071,103990.0,103980.0,0.286335]
[1746866894420,0.96407,103990.0,103980.0,0.286335]
[1746866894615,1.16604071,103990.0,103980.0,0.286335]
[1746866895216,1.00004071,103990.0,103980.0,0.286335]
[1746866895414,1.06474071,103990.0,103980.0,0.286335]
[1746866896325,1.23074071,103990.0,103980.0,0.30137183]
[1746866897525,1.16077,103990.0,103980.0,0.30137183]
[1746866897728,1.23074071,103990.0,103980.0,0.30137183]
[1746866898324,1.23074071,103990.0,103980.0,0.30137185]
[1746866901115,1.23074071,103990.0,103980.0,0.286335]
[1746866908235,1.23074071,103990.0,103980.0,0.30137179]
[1746866909032,1.23074071,103990.0,103980.0,0.30137178]
[1746866909631,1.16077,103990.0,103980.0,0.30137178]
[1746866909823,1.23074071,103990.0,103980.0,0.30137178]
[1746866912720,1.42305721,103990.0,103980.0,0.30137178]
[1746866912920,1.42305721,103990.0,103980.0,0.224035]
[1746866913119,1.42305721,103990.0,103980.0,0.23907201]
[1746866913319,1.42305721,103990.0,103980.0,0.224035]
[1746866913828,1.49302792,103990.0,103980.0,0.224035]
[1746866914018,1.42305721,103990.0,103980.0,0.224035]
[1746866914224,1.42305721,103990.0,103980.0,0.192335]
[1746866914837,1.49302792,103990.0,103980.0,0.192335]
[1746866915131,1.49402792,103990.0,103980.0,0.192335]
[1746866915326,1.42305721,103990.0,103980.0,0.192335]
[1746866915526,1.42505721,103990.0,103980.0,0.192335]
[1746866916031,1.49502792,103990.0,103980.0,0.192335]
[1746866916432,1.42505721,103990.0,103980.0,0.192335]
[1746866917523,1.42505721,103990.0,103960.0,0.1283824]
[1746866917524,0.192335,103980.0,103960.0,0.1283824]
[1746866917734,0.42107811,103980.0,103970.0,0.2251535]
[1746866918035,1.37517811,103980.0,103970.0,0.2251535]